Cogmind - Beta 9.4 *** ADVENTURER MODE // 2020.07.31 @ 19:09:27 Player: Scyralis Result: Self-destructed Performance ------------- Evolutions (2) 1000 Regions Visited (6) 1200 Robots Destroyed (60) 300 Value Destroyed (918) 918 Prototype IDs (0) 0 Alien Tech Used (0) 0 Bonus (6) 6 TOTAL SCORE: 3424 Bonus ------- High Alert Combat Kills 6 Cogmind --------- Core Integrity 419/550 Matter 300/300 Energy 60/100 System Corruption 0% Temperature Cool (0) Movement Core (300) Ox5 Location -8/Materials Parts ------- > --- POWER (1) -------- (None) > --- PROPULSION (3) --- (None) > --- UTILITY (4) ------ Large Storage Unit Advanced Weight Redist. System Core Shielding > --- WEAPON (3) ------- (None) > --- INVENTORY (10) --- Light Ion Engine Advanced Terrain Scanner Heavy Explosive Trap Heavy Explosive Trap Heavy Explosive Trap Peak State ------------ > --- POWER ------------ Light Nuclear Core > --- PROPULSION ------- Wheel Wheel Compact Wheel > --- UTILITY ---------- Large Storage Unit Advanced Weight Redist. System Core Shielding Hardened Light Armor Plating > --- WEAPON ----------- Heavy Mace Mining Claw > --- INVENTORY -------- Advanced Terrain Scanner Heavy Explosive Trap Heavy Explosive Trap Heavy Explosive Trap [Rating: 18] Favorites ----------- Power Light Ion Engine Engine Light Ion Engine Power Core Light Nuclear Core Propulsion Compact Wheel Wheel Compact Wheel Utility Weight Redist. System Device Weight Redist. System Storage Large Storage Unit Processor Signal Interpreter Protection Core Shielding Weapon Mining Claw Impact Weapon Heavy Mace Slashing Weapon Mining Claw Build | -11 -10 -9 -9 -9 -8 -8 ------- Run | Scr Mat Mat Min Exi Min Mat Slots Evolved 4 | . . 2 . . . 2 Power . | . . . . . . . Propulsion 1 | . . . . . . 1 Utility 2 | . . 2 . . . . Weapon 1 | . . . . . . 1 Parts Attached 40 | 3 3 23 . 1 7 3 Power 6 | 1 . 3 . . 2 . Engine 5 | 1 . 3 . . 1 . Core 1 | . . . . . 1 . Reactor . | . . . . . . . Propulsion 16 | 2 . 12 . . 1 1 Treads . | . . . . . . . Leg . | . . . . . . . Wheel 16 | 2 . 12 . . 1 1 Hover . | . . . . . . . Flight . | . . . . . . . Utility 13 | . 1 8 . 1 1 2 Device 5 | . . 4 . . . 1 Storage 1 | . . . . 1 . . Processor 1 | . 1 . . . . . Hackware . | . . . . . . . Protection 6 | . . 4 . . 1 1 Artifact . | . . . . . . . Weapon 5 | . 2 . . . 3 . Energy Gun . | . . . . . . . Energy Cannon . | . . . . . . . Ballistic Gun . | . . . . . . . Ballistic Cannon . | . . . . . . . Launcher . | . . . . . . . Special Weapon . | . . . . . . . Impact Weapon 1 | . . . . . 1 . Slashing Weapon 4 | . 2 . . . 2 . Piercing Weapon . | . . . . . . . Special Melee Weapon . | . . . . . . . Unidentified Prototypes . | . . . . . . . Parts Lost 17 | . 2 5 . . 3 7 Power 3 | . 1 1 . . . 1 Propulsion 7 | . 1 2 . . 1 3 Utility 4 | . . 2 . . 1 1 Weapon 3 | . . . . . 1 2 Highest Loss Streak 7 | . 1 2 . . 1 7 Average Slot Usage (%) 88 | . 29 92 100 100 92 76 Engine 9 | . 10 10 11 11 10 . Wheel 19 | . 14 19 22 22 19 18 Device 15 | . . 23 22 13 11 9 Storage 5 | . . . . 8 11 9 Processor 2 | . 1 6 . . . . Protection 15 | . . 11 22 22 17 17 Impact Weapon 2 | . . . . . 7 8 Slashing Weapon 17 | . 3 22 22 22 13 8 Naked Turns 32 | . 32 . . . . . Heaviest Build 32 | 5 5 16 12 27 29 32 Greatest Support 45 | 32 32 38 38 38 38 45 Greatest Overweight (x) 8 | . 1 1 . . 1 8 Average Overweight (x) . | . . . . . . . Largest Inventory Capacity 10 | 4 4 4 4 10 10 10 Average Capacity 6 | 4 4 4 4 8 10 10 Most Carried 5 | 2 2 4 4 5 5 5 Average Carried 2 | . . . 2 3 3 3 Final Capacity 10 | 4 4 4 4 10 10 10 Final Carried 5 | . 1 . 4 4 3 5 Class Distribution -------------------- 91% | Mutant 8% | Scavenger-Mutant Dominant Class ---------------- Mutant | -10/Materials Mutant | -9/Materials Mutant | -9/Mines Mutant | -9/Exiles Mutant | -8/Mines Mutant | -8/Materials Resources | -11 -10 -9 -9 -9 -8 -8 ----------- Run | Scr Mat Mat Min Exi Min Mat Matter Collected 533 | 193 42 198 . . 80 20 Remotely . | . . . . . . . Salvage Created 1899 | . 82 1406 . . 341 70 Parts 113 | . 9 84 . . 15 5 Haulers Intercepted 2 | . . 2 . . . . Recyclers Shooed 2 | . . 1 . . 1 . Parts Field Recycled . | . . . . . . . Retrieved Matter . | . . . . . . . Parts Self-Destructed . | . . . . . . . Prevented . | . . . . . . . Kills | -11 -10 -9 -9 -9 -8 -8 ------- Run | Scr Mat Mat Min Exi Min Mat Combat Hostiles Destroyed 32 | . 3 18 . . 8 3 Melee 26 | . 3 18 . . 3 2 AOE 3 | . . . . . 3 . Classes Destroyed 10 | . 2 7 . . 1 . Worker 8 | . 1 5 . . 1 1 Builder 4 | . . 2 . . 2 . Tunneler 4 | . . . . . 4 . Hauler 2 | . . 2 . . . . Recycler 7 | . . 6 . . 1 . Mechanic 1 | . . 1 . . . . Watcher 2 | . . 2 . . . . Swarmer 19 | . 3 6 . . 7 3 Grunt 7 | . . 6 . . 1 . Sentry 6 | . . 6 . . . . Best Kill Streak 8 | . 3 8 . . 4 3 Combat Bots Only 4 | . 3 3 . . 4 3 Max Kills in Single Turn 3 | . 1 1 . . 3 1 Gunslinging . | . . . . . . . Exploded 3 | . . . . . 3 . Melee 1 | . 1 1 . . 1 1 Uniques/NPCs Destroyed . | . . . . . . . Combat | -11 -10 -9 -9 -9 -8 -8 -------- Run | Scr Mat Mat Min Exi Min Mat Damage Taken 1963 | 1 345 773 . . 307 537 Core 640 | 1 234 207 . . 67 131 Absorbed by Shields . | . . . . . . . Core Remaining (%) 45 | 99 6 . . . 31 . Volleys Fired . | . . . . . . . Largest . | . . . . . . . Hottest . | . . . . . . . Shots Fired . | . . . . . . . Gun . | . . . . . . . Cannon . | . . . . . . . Launcher . | . . . . . . . Special . | . . . . . . . Kinetic . | . . . . . . . Thermal . | . . . . . . . Explosive . | . . . . . . . Electromagnetic . | . . . . . . . Robot Hit Streak . | . . . . . . . Robot Miss Streak . | . . . . . . . Penetration Max . | . . . . . . . Secondary Targets . | . . . . . . . Shots Hit Robots 129 | . 1 75 . . 40 13 Core Hits 62 | . 13 36 . . 10 3 Critical Hits . | . . . . . . . Critical Kills . | . . . . . . . Critical Parts Destroyed . | . . . . . . . Melee Attacks 231 | . 1 136 . 8 56 30 Impact 62 | . . . . . 36 26 Slashing 169 | . 1 136 . 8 20 4 Piercing . | . . . . . . . Sneak Attacks 36 | . 1 23 . . 11 1 Combat Hostiles . | . . . . . . . Follow-up Attacks 19 | . . 10 . . 6 3 Damage Inflicted 5049 | 3 109 2651 . . 1941 345 Guns . | . . . . . . . Cannons . | . . . . . . . Explosions 257 | . . . . . 257 . Melee 4749 | . 69 2651 . . 1684 345 Ramming 43 | 3 40 . . . . . Kinetic . | . . . . . . . Thermal . | . . . . . . . Explosive 257 | . . . . . 257 . Electromagnetic . | . . . . . . . Impact 1247 | . . . . . 971 276 Slashing 3502 | . 69 2651 . . 713 69 Piercing . | . . . . . . . Highest Corruption 1 | . . 1 1 1 1 . Average Corruption 1 | . . 1 1 1 1 . Corruption Purged . | . . . . . . . Effects 10 | . . 7 . 3 . . Message Errors 4 | . . 2 . 2 . . Energy Discharges 2 | . . 1 . 1 . . Data Loss (minor) 1 | . . 1 . . . . Targeting Errors 3 | . . 3 . . . . Overload Shots . | . . . . . . . Overflow Damage 811 | . . 236 . . 538 37 Projectiles . | . . . . . . . Explosions 28 | . . . . . 28 . Melee 783 | . . 236 . . 510 37 Knockbacks 4 | . . . . . 4 . Impact 4 | . . . . . 4 . Kinetic . | . . . . . . . Secondary . | . . . . . . . Self-Inflicted Damage 37 | 1 16 . . . 20 . Shots 1 | . . . . . 1 . Rammed 18 | 1 17 . . . . . Targets Rammed 18 | 1 17 . . . . . Kicked . | . . . . . . . Crushed . | . . . . . . . Highest Temperature . | . . . . . . . Average Temperature . | . . . . . . . Received Heat Transfer 744 | . 144 267 . . 90 243 Siege Activations . | . . . . . . . Robots Corrupted . | . . . . . . . Combat Hostiles . | . . . . . . . Parts Fried 6 | . . . . . 5 1 Impact Corruptions 19 | . . . . . 17 2 Robots Melted . | . . . . . . . Combat Hostiles . | . . . . . . . Parts Melted . | . . . . . . . Heat Transferred . | . . . . . . . Parts Sabotaged . | . . . . . . . Parts Stolen . | . . . . . . . Parts Stripped . | . . . . . . . Power Chain Reactions . | . . . . . . . Missiles Intercepted . | . . . . . . . Alert | -11 -10 -9 -9 -9 -8 -8 ------- Run | Scr Mat Mat Min Exi Min Mat Peak Influence 515 | . 83 515 128 . 184 77 Average Influence 143 | . 42 264 128 . 39 26 Maximum Alert Level 2 | . . 2 . . . . Low Security (%) 68 | 100 100 29 100 . 100 100 Level 1 28 | . . 63 . . . . Level 2 3 | . . 6 . . . . Level 3 . | . . . . . . . Level 4 . | . . . . . . . Level 5 . | . . . . . . . High Security . | . . . . . . . Max Security . | . . . . . . . Squads Dispatched 9 | . 1 6 . . 1 1 Investigation 7 | . 1 5 . . . 1 Extermination . | . . . . . . . Reinforcement 2 | . . 1 . . 1 . Assault . | . . . . . . . Garrison . | . . . . . . . Intercept . | . . . . . . . Construction Impeded 1 | . . . . . 1 . Haulers Reinforced . | . . . . . . . Stealth | -11 -10 -9 -9 -9 -8 -8 --------- Run | Scr Mat Mat Min Exi Min Mat Distress Signals 4 | . . 3 . . 1 . Communications Jammed . | . . . . . . . Distress Signals . | . . . . . . . Times Spotted 77 | . 15 36 . . 18 8 Peak Tracking Total 7 | . 7 5 . . 4 5 Tactical Retreats 12 | . 3 4 . . 5 . Traps | -11 -10 -9 -9 -9 -8 -8 ------- Run | Scr Mat Mat Min Exi Min Mat Traps Triggered 3 | . 1 2 . . . . Indirectly . | . . . . . . . Trap Hack Attempts . | . . . . . . . Triggered . | . . . . . . . Disarmed . | . . . . . . . Reprogrammed 3 | . . 3 . . . . Reused 1 | . . . . . 1 . Traps Extracted . | . . . . . . . Installed 1 | . . . . . 1 . Triggered 1 | . . . . . 1 . Machines | -11 -10 -9 -9 -9 -8 -8 ---------- Run | Scr Mat Mat Min Exi Min Mat Machines Disabled 6 | . . 5 . . . 1 Max in Single Turn 1 | . . 1 . . . 1 Machines Sabotaged . | . . . . . . . Garrisons Compromised . | . . . . . . . Overloaded Fab Kills . | . . . . . . . Fab Network Shutdowns . | . . . . . . . Hacking | -11 -10 -9 -9 -9 -8 -8 --------- Run | Scr Mat Mat Min Exi Min Mat Machines Accessed 12 | . 3 8 . . . 1 Terminals 10 | . 3 6 . . . 1 Fabricators . | . . . . . . . Repair Stations 1 | . . 1 . . . . Recycling Units . | . . . . . . . Scanalyzers 1 | . . 1 . . . . Garrison Access . | . . . . . . . Total Hacks 38 | . 9 23 . . . 6 Successful 14 | . 5 7 . . . 2 Failed 24 | . 4 16 . . . 4 Catastrophic 5 | . 2 2 . . . 1 Database Lockouts . | . . . . . . . Manual 22 | . 6 10 . 1 . 5 Terminals 35 | . 9 20 . . . 6 Fabricators . | . . . . . . . Repair Stations 2 | . . 2 . . . . Recycling Units . | . . . . . . . Scanalyzers 1 | . . 1 . . . . Garrison Access . | . . . . . . . Terminal Hacks 11 | . 5 4 . . . 2 Branch Access Points 1 | . . 1 . . . . Alert Level 1 | . . 1 . . . . Locate Traps 1 | . 1 . . . . . Reprogram Traps 1 | . . 1 . . . . Maintenance Status 1 | . . . . . . 1 Surveillance Status 1 | . 1 . . . . . Hauler Manifests 3 | . 1 1 . . . 1 Registered Components 1 | . 1 . . . . . Registered Prototypes 1 | . 1 . . . . . Fabricator Hacks . | . . . . . . . Repair Station Hacks 2 | . . 2 . . . . Scan Component 1 | . . 1 . . . . Repair 1 | . . 1 . . . . Recycling Unit Hacks . | . . . . . . . Scanalyzer . | . . . . . . . Garrison Access Hacks . | . . . . . . . Unauthorized Hacks 2 | . . 2 . . . . Terminals . | . . . . . . . Fabricators . | . . . . . . . Repair Stations . | . . . . . . . Recycling Units . | . . . . . . . Scanalyzers 1 | . . 1 . . . . Extract 1 | . . 1 . . . . Garrison Access . | . . . . . . . Data Cores Recovered . | . . . . . . . Used . | . . . . . . . Hacking Detections 11 | . 3 7 . . . 1 Full Trace Events 7 | . 1 5 . . . 1 Feedback Events . | . . . . . . . Feedback Blocked . | . . . . . . . Robot Schematics Acquired . | . . . . . . . Robots Built . | . . . . . . . Matter . | . . . . . . . Time . | . . . . . . . Total Robot Build Rating . | . . . . . . . Part Schematics Acquired 4 | . . 4 . . . . Parts Built . | . . . . . . . Matter . | . . . . . . . Time . | . . . . . . . Total Part Build Rating . | . . . . . . . Parts Repaired 1 | . . 1 . . . . Time 26 | . . 26 . . . . Parts Recycled . | . . . . . . . Recycled Matter . | . . . . . . . Retrieved Matter . | . . . . . . . Retrieved Components . | . . . . . . . Parts Scanalyzed . | . . . . . . . Part Schematics Acquired . | . . . . . . . Parts Damaged . | . . . . . . . Bothacking | -11 -10 -9 -9 -9 -8 -8 ------------ Run | Scr Mat Mat Min Exi Min Mat Used RIF Installer . | . . . . . . . Robots Hacked . | . . . . . . . Non-combat . | . . . . . . . Combat . | . . . . . . . Robot Hacks Applied . | . . . . . . . Relay Couplers Released . | . . . . . . . Robots Rewired . | . . . . . . . Allies Hacked . | . . . . . . . Hacks Repelled . | . . . . . . . Allies | -11 -10 -9 -9 -9 -8 -8 -------- Run | Scr Mat Mat Min Exi Min Mat Total Allies . | . . . . . . . Largest Group . | . . . . . . . Highest-Rated Group . | . . . . . . . Highest-Rated Ally . | . . . . . . . Total Orders . | . . . . . . . Ally Attacks . | . . . . . . . Total Damage . | . . . . . . . Kills . | . . . . . . . Allies Corrupted . | . . . . . . . Allies Melted . | . . . . . . . Intel | -11 -10 -9 -9 -9 -8 -8 ------- Run | Scr Mat Mat Min Exi Min Mat Robot Analysis Total . | . . . . . . . Derelict Logs Recovered . | . . . . . . . Drone Launches . | . . . . . . . Drone Recoveries . | . . . . . . . Exploration | -11 -10 -9 -9 -9 -8 -8 ------------- Run | Scr Mat Mat Min Exi Min Mat Turns Passed 2640 | 28 218 906 123 599 591 175 Spaces Moved 1893 | 24 221 457 109 576 417 89 Core 137 | 4 131 . . . . 2 Treads . | . . . . . . . Legs . | . . . . . . . Wheels 1756 | 20 90 457 109 576 417 87 Hover . | . . . . . . . Flight . | . . . . . . . Fastest Speed 50 | 50 50 80 100 100 90 80 Average Speed 94 | 91 86 86 100 100 100 93 Slowest Speed 450 | 100 100 100 100 100 110 450 Overloaded Moves . | . . . . . . . Propulsion Burnouts . | . . . . . . . Robots Hopped . | . . . . . . . Cave-ins Triggered . | . . . . . . . Exploration Rate (%) 49 | 3 67 47 39 90 85 12 Regions Visited 6 Branch Regions 3 Pre-discovered Areas . | . . . . . . . Known Exits Taken 2 | . 1 1 . . . . Unknown Exits Taken 4 | 1 . . 1 1 1 . Scrap Searched 2 | . . . . . 2 . Spaces Dug 20 | . . 6 . . 8 6 Terrain Destroyed 38 | . . 6 . . 26 6 Melee 20 | . . 6 . . 8 6 Projectile . | . . . . . . . AOE 18 | . . . . . 18 . Actions | -11 -10 -9 -9 -9 -8 -8 --------- Run | Scr Mat Mat Min Exi Min Mat Total 2342 | 30 246 738 123 588 490 127 Wait 127 | . . 109 11 1 4 2 Move 1888 | 24 220 456 108 575 416 89 Hop . | . . . . . . . Pick Up 49 | 3 4 22 4 3 8 5 Fast Attach . | . . . . . . . Attach 29 | 3 3 15 . . 6 2 Detach . | . . . . . . . Swap 11 | . . 8 . 1 1 1 Drop 29 | . 1 17 . 3 6 2 Fire . | . . . . . . . Melee 191 | . 1 111 . 5 48 26 Ram 17 | . 17 . . . . . Kick . | . . . . . . . Crush . | . . . . . . . Escape Stasis . | . . . . . . . Rewire . | . . . . . . . Trap 1 | . . . . . 1 . Miscellaneous . | . . . . . . . Route ------- -11/Scrapyard -10/Materials -9/Materials (discovered 5 exits: *Mat / *Min x2 / *Sto x2) -9/Mines -9/Exiles (discovered 2 exits: [*Min x2]) -8/Mines (discovered 2 exits: *Mat x2) -8/Materials History --------- Turn | Location | Event 8 | -11/Scrapyard | Discovered new exit (range 15) 29 | -11/Scrapyard | Entered Materials 192 | -10/Materials | Core integrity fell below 50% 213 | -10/Materials | Discovered new exit (range 10) 214 | -10/Materials | Core integrity fell below 20% 246 | -10/Materials | Identified exit to Materials 247 | -10/Materials | Entered another Materials area 247 | -9/Materials | Evolved 2 slots: Utility x2 304 | -9/Materials | Build established: Mutant 313 | -9/Materials | Discovered new exit (range 8) 507 | -9/Materials | Repaired Wheel 588 | -9/Materials | Discovered new exit (range 15) 739 | -9/Materials | Identified exit to Mines 739 | -9/Materials | Identified exit to Storage 998 | -9/Materials | Core integrity fell below 50% 1153 | -9/Materials | Entered Mines 1154 | -9/Mines | Assembled infested the area 1160 | -9/Mines | Received a Rocket Launcher from a helpful Derelict 1202 | -9/Mines | Found a hidden stash of uninstalled traps 1209 | -9/Mines | Met 8R-AWN 1268 | -9/Mines | Discovered new exit (range 5) 1276 | -9/Mines | Entered Exiles 1300 | -9/Exiles | Welcomed by 8R-AWN 1323 | -9/Exiles | Met EX-HEX 1414 | -9/Exiles | Met EX-DEC 1440 | -9/Exiles | Visited The Gauntlet 1607 | -9/Exiles | Discovered new exit (range 11) 1684 | -9/Exiles | Learned about 8R-AWN's background 1712 | -9/Exiles | Met EX-BIN 1854 | -9/Exiles | Discovered new exit (range 14) 1875 | -9/Exiles | Entered Mines 2435 | -8/Mines | Discovered new exit (range 12) 2451 | -8/Mines | Discovered new exit (range 7) 2466 | -8/Mines | Entered Materials 2466 | -8/Materials | Evolved 2 slots: Propulsion x1, Weapon x1 2641 | -8/Materials | Self-destructed Last Messages --------------- 02594_ Acquired 3 matter. 02599_ Destroyed Flight Unit. 02599_ S-10 Pest system corrupted by crushing effect. 02602_ Destroyed Flight Unit. 02602_ S-10 Pest system corrupted by crushing effect. 02603_ S-10 Pest system terminally corrupted. 02603_ Lgt. Ion Engine fried. 02604_ The unstable cave ceiling collapses. 02604_ 14 Matter crushed. 02612_ S-10 Pest destroyed. 02614_ Wheel destroyed. 02616_ Acquired Lgt. Ion Engine. 02617_ Wheel destroyed. 02621_ Mining Claw follow-up attack on Y-45 Defender. 02633_ Hrd. Light Armor Plating destroyed. 02637_ Mining Claw follow-up attack on Y-45 Defender. 02637_ Destroyed Heat Sink. 02638_ R-06 Scavenger collects Med. Matter Pod. 02639_ Mining Claw destroyed. 02639_ Hvy. Mace destroyed. Map ----- +----------------------------------------------------+ | ?????????????????????????????????? | | ?????????????????????????????????? | | ?????????????????????????????????? | | ?????????????????????????????????? | | ?????????????????????????????????? | | ?????????????????????????????????? | | ?????????????????????????????????? | | ?????????????????????????????????? | | ?????????????????????????????????? | | ??????????????????????? ????????? | | ??????????????????????# ???????? | | ??????????????????????# ???????? | | ??????????????????????# ???????? | | ??????????????????????# ???????? | | ??????????????????????# ???????? | | ??????????????????????# ???????? | | ??????????????????????# ???????? | | ??????????????????????# #??????? | | ????????????????????### ###????? | | ????????????????????# #????? | | ????????????????????# #????? | | ????????????????????# =#????? | | ????????????????????+ %##???? | | ????????????????????# g ;##??? | | ????????????????????# # ##?? | | ????????????????????# g @ ####?? | | ????????????????########Y#####%##? | | ????????????????# a * # | | ????????????????# g # | | ????????????????#= # | | ????????????????#! # | | ?????????######## r # | | ????# + " """"" # | | ?????????######## """"""""" # | | ????????????????# """ """ # | | ????????????????# # | | ????????????????#######"########## | | ??????????????????# #????? | | ??????????????????# """ """ #????? | | ??????????????????# """ """ #????? | | ??????????????????# """ """ #????? | | ??????????????????# #????? | | ??????????????????# #????? | | ??????????????????# #????? | | ??????????????????# #?? # | | ????????????????#######+###+# # | | ????????????????# + # | | ????????????????# # # | | ????????????????# #?? # | | ????????????????# ##+#####? | +----------------------------------------------------+ Best States ------------- Heat Dissipation 38 Energy Generation 14 Energy Capacity 265 Matter Stores 300 Matter Capacity 300 Sight Range 16 Terrain Scan Density 10 Additional Mass Support 9 Armor Coverage 150 Resistance: KI 20 Resistance: TH 20 Resistance: EX 20 Resistance: EM 20 Resistance: I 20 Resistance: S 20 Resistance: P 20 Core Shielding 20 Power Shielding 66 Reclamation Efficiency 10 Evasion (%) 50 Offensive Hacking 10 Item Schematics ----------------- Lrg. Storage Unit | -9/Materials | Extracted Hcp. Battery | -9/Materials | Extracted Imp. Light Cannon | -9/Materials | Extracted Reclamation Unit | -9/Materials | Extracted Robot Schematics ------------------ None Fabricated ------------ Nothing Alien Tech Used ----------------- None Achievements -------------- None Challenges ------------ None Game ------ Seed TiamatMediumShockpuncher Manual? 0 Play Time 00:20:28 Cumulative 178.4 hours Start 2020.07.31 @ 18:50:23 End 2020.07.31 @ 19:09:27 Sessions 1 Manual Loads 0 Difficulty Adventurer Special Mode None Game No. 82 Rogue 0 Adventurer 82 Explorer 0 Win Type - Total 1 Types 1/0/0/0/0/0/0 Lore% 30 Gallery% 55 Achievement% 41 Wizard Run 0 Options --------- ASCII 0 Keyboard 0 Movement Numpad Keybinds 0 Fullscreen 0 Font 12/Smallcaps Map View 83x54 Tactical HUD 1 Map Filters NONE Filters NONE Steam X RUN: 3bfb9fa3-755a-4ec4-b62d-cfe3567cf09c